Cogmind - Beta 12 @@@ ROGUE MODE // 2023.11.05 @ 07:39:25 Player: Tallim Result: Self-destructed Performance ------------- Evolutions (1) 500 Regions Visited (4) 800 Robots Destroyed (15) 75 Value Destroyed (415) 415 Prototype IDs (0) 0 Alien Tech Used (0) 0 Bonus (0) 0 TOTAL SCORE: 1790 Bonus ------- None Cogmind --------- Core Integrity 343/400 Matter 267/300 Energy 125/125 System Corruption 0% Temperature Cool (56) Movement Walking (120) Location -9/Storage Parts ------- > --- POWER (1) -------- Light Ion Engine > --- PROPULSION (4) --- Aluminum Leg Aluminum Leg Aluminum Leg Carbon-fiber Leg > --- UTILITY (2) ------ Small Storage Unit Improved Targeting Computer > --- WEAPON (2) ------- Beam Cannon Light Assault Rifle > --- INVENTORY (8) ---- Ion Engine Aluminum Leg Improved Heat Sink Large Matter Pod (100) Seismic Detector Beam Cannon Peak State ------------ > --- POWER ------------ Improved Ion Engine > --- PROPULSION ------- Aluminum Leg Aluminum Leg Aluminum Leg Carbon-fiber Leg > --- UTILITY ---------- Small Storage Unit Large Matter Pod > --- WEAPON ----------- Medium Laser Heavy Assault Rifle > --- INVENTORY -------- Ion Engine Ion Engine Aluminum Leg Improved Heat Sink Seismic Detector Beam Cannon Beam Cannon Light Assault Rifle [Rating: 14] Favorites ----------- Power Ion Engine Engine Ion Engine Propulsion Aluminum Leg Leg Aluminum Leg Utility Small Storage Unit Storage Small Storage Unit Processor Improved Targeting Computer Weapon EM Pulse Gun Energy Gun EM Pulse Gun Energy Cannon Beam Cannon Ballistic Gun Heavy Assault Rifle Special Melee Weapon Datajack Build | -11 -10 -10 -9 -9 ------- Run | Jun Mat Min Mat Sto Slots Evolved 2 | . . . 2 . Power . | . . . . . Propulsion 2 | . . . 2 . Utility . | . . . . . Weapon . | . . . . . Parts Attached 27 | 6 3 1 6 11 Power 6 | 1 1 . 1 3 Engine 6 | 1 1 . 1 3 Core . | . . . . . Reactor . | . . . . . Propulsion 9 | 2 . . 3 4 Treads . | . . . . . Leg 9 | 2 . . 3 4 Wheel . | . . . . . Hover . | . . . . . Flight . | . . . . . Utility 3 | 1 1 . . 1 Device . | . . . . . Storage 2 | 1 1 . . . Processor 1 | . . . . 1 Hackware . | . . . . . Protection . | . . . . . Artifact . | . . . . . Weapon 9 | 2 1 1 2 3 Energy Gun 4 | 2 . 1 . 1 Energy Cannon 1 | . . . . 1 Ballistic Gun 3 | . . . 2 1 Ballistic Cannon . | . . . . . Launcher . | . . . . . Special Weapon . | . . . . . Impact Weapon . | . . . . . Slashing Weapon . | . . . . . Piercing Weapon . | . . . . . Special Melee Weapon 1 | . 1 . . . Unidentified Prototypes . | . . . . . Parts Lost 5 | . . 1 1 3 Power 1 | . . . . 1 Propulsion 2 | . . . . 2 Utility . | . . . . . Weapon 2 | . . 1 1 . Highest Loss Streak 3 | . . 1 1 3 To Critical Strikes . | . . . . . Average Slot Usage (%) 92 | . 88 90 99 94 Engine 12 | . 14 14 11 9 Leg 34 | . 28 28 44 42 Storage 23 | . 17 28 22 21 Energy Gun 14 | . 26 14 17 7 Ballistic Gun 4 | . . . 3 11 Special Melee Weapon 1 | . 1 4 . . Naked Turns . | . . . . . Heaviest Build 20 | 12 17 17 20 20 Greatest Support 45 | 20 20 20 45 45 Greatest Overweight (x) . | . . . . . Average Overweight (x) . | . . . . . Largest Inventory Capacity 8 | 8 8 8 8 8 Average Capacity 7 | 6 8 8 8 8 Most Carried 8 | 5 8 8 8 8 Average Carried 7 | 2 6 7 5 7 Final Capacity 8 | 8 8 8 8 8 Final Carried 8 | 2 8 7 8 6 Class Distribution -------------------- 86% | Mutant 13% | Scavenger-Mutant Dominant Class ---------------- Mutant | -10/Materials Mutant | -10/Mines Mutant | -9/Materials Mutant | -9/Storage Resources | -11 -10 -10 -9 -9 ----------- Run | Jun Mat Min Mat Sto Matter Collected 632 | 217 223 . 62 130 Remotely . | . . . . . Salvage Created 559 | . . 54 134 371 Parts 48 | . . 6 10 32 Haulers Intercepted . | . . . . . Recyclers Shooed . | . . . . . Parts Field Recycled . | . . . . . Retrieved Matter . | . . . . . Parts Self-Destructed . | . . . . . Prevented . | . . . . . Kills | -11 -10 -10 -9 -9 ------- Run | Jun Mat Min Mat Sto Combat Hostiles Destroyed 12 | . . 3 2 7 Guns 12 | . . 3 2 7 Classes Destroyed 5 | . . 1 2 2 Builder 2 | . . . . 2 Watcher 1 | . . . 1 . Swarmer 4 | . . 3 . 1 Grunt 1 | . . . . 1 Sentry 7 | . . . 2 5 Best Kill Streak 3 | . . 3 2 3 Combat Bots Only 3 | . . 3 1 2 Max Kills in Single Turn 1 | . . 1 1 1 Gunslinging . | . . . . . Exploded . | . . . . . Melee . | . . . . . Uniques/NPCs Destroyed . | . . . . . Combat | -11 -10 -10 -9 -9 -------- Run | Jun Mat Min Mat Sto Damage Taken 903 | . . 191 167 545 Core 108 | . . 51 . 57 Absorbed by Shields . | . . . . . Core Remaining (%) 89 | 100 . 79 . . Volleys Fired 63 | . . 14 11 38 Largest 2 | . . 1 2 2 Hottest 90 | . . 40 90 80 Shots Fired 94 | . . 14 21 59 Gun 91 | . . 14 21 56 Cannon 3 | . . . . 3 Launcher . | . . . . . Special . | . . . . . Kinetic 45 | . . . 7 38 Thermal 32 | . . . 11 21 Explosive . | . . . . . Electromagnetic 17 | . . 14 3 . Robot Hit Streak 10 | . . 5 10 8 Robot Miss Streak 2 | . . 2 2 2 Penetration Max . | . . . . . Secondary Targets 1 | . . . 1 . Max Gunslinging Chain 1 | . . . 1 . Shots Hit Robots 65 | . . 9 16 40 Core Hits 24 | . . 3 6 15 Critical Kills 1 | . . . . 1 Critical Parts Destroyed . | . . . . . Critical Strikes 6 | . . . 3 3 Burn 5 | . . . 3 2 Destroy 1 | . . . . 1 Melee Attacks 1 | . . 1 . . Impact . | . . . . . Slashing . | . . . . . Piercing . | . . . . . Sneak Attacks 1 | . . 1 . . Combat Hostiles . | . . . . . Follow-up Attacks . | . . . . . Damage Inflicted 847 | . . 87 173 587 Guns 830 | . . 87 173 570 Cannons 17 | . . . . 17 Explosions . | . . . . . Melee . | . . . . . Ramming . | . . . . . Kinetic 436 | . . . 40 396 Thermal 292 | . . . 101 191 Explosive . | . . . . . Electromagnetic 119 | . . 87 32 . Impact . | . . . . . Slashing . | . . . . . Piercing . | . . . . . Highest Corruption . | . . . . . Average Corruption . | . . . . . Corruption Purged . | . . . . . Corruption Blocked . | . . . . . Overload Shots . | . . . . . Overflow Damage . | . . . . . Projectiles . | . . . . . Explosions . | . . . . . Melee . | . . . . . Knockbacks . | . . . . . Impact . | . . . . . Kinetic . | . . . . . Secondary . | . . . . . Self-Inflicted Damage . | . . . . . Shots . | . . . . . Rammed . | . . . . . Targets Rammed . | . . . . . Kicked . | . . . . . Crushed . | . . . . . Highest Temperature 121 | . . . 121 96 Average Temperature 39 | . . . 48 34 Received Heat Transfer 195 | . . . 45 150 Siege Activations . | . . . . . Robots Corrupted . | . . . . . Combat Hostiles . | . . . . . Parts Fried 1 | . . 1 . . Impact Corruptions . | . . . . . Robots Melted . | . . . . . Combat Hostiles . | . . . . . Parts Melted 3 | . . . . 3 Heat Transferred 1221 | . . . 518 703 Parts Sabotaged . | . . . . . Parts Stolen . | . . . . . Parts Stripped . | . . . . . Power Chain Reactions . | . . . . . Missiles Intercepted . | . . . . . Alert | -11 -10 -10 -9 -9 ------- Run | Jun Mat Min Mat Sto Peak Influence 296 | . . 80 72 296 Initial 29 | . . . . 29 Average 78 | . . 42 29 177 Maximum Alert Level 1 | . . . . 1 Low Security (%) 81 | 100 100 100 100 43 Level 1 18 | . . . . 56 Level 2 . | . . . . . Level 3 . | . . . . . Level 4 . | . . . . . Level 5 . | . . . . . High Security . | . . . . . Max Security . | . . . . . Squads Dispatched 5 | . 3 . . 2 Investigation 2 | . . . . 2 Extermination . | . . . . . Reinforcement 3 | . 3 . . . Assault . | . . . . . Garrison . | . . . . . Intercept . | . . . . . Searches Triggered . | . . . . . Construction Impeded . | . . . . . Haulers Reinforced . | . . . . . Active Scanning Responses . | . . . . . Cargo Convoy Interrupts . | . . . . . Stealth | -11 -10 -10 -9 -9 --------- Run | Jun Mat Min Mat Sto Distress Signals 4 | . 2 . 1 1 Communications Jammed . | . . . . . Distress Signals . | . . . . . Times Spotted 24 | . 6 3 3 12 Peak Tracking Total 5 | . 3 3 2 5 Tactical Retreats 1 | . . . . 1 Traps | -11 -10 -10 -9 -9 ------- Run | Jun Mat Min Mat Sto Traps Triggered 6 | . . 1 . 5 Indirectly . | . . . . . Trap Hack Attempts . | . . . . . Triggered . | . . . . . Disarmed . | . . . . . Reprogrammed . | . . . . . Reused . | . . . . . Traps Extracted . | . . . . . Installed . | . . . . . Triggered 1 | . . 1 . . Machines | -11 -10 -10 -9 -9 ---------- Run | Jun Mat Min Mat Sto Machines Disabled . | . . . . . Max in Single Turn . | . . . . . Machines Repaired . | . . . . . Machines Sabotaged . | . . . . . Overloaded Fab Kills . | . . . . . Hacking | -11 -10 -10 -9 -9 --------- Run | Jun Mat Min Mat Sto Machines Accessed 9 | . 3 1 . 5 Terminals 8 | . 3 . . 5 Fabricators . | . . . . . Repair Stations . | . . . . . Recycling Units . | . . . . . Scanalyzers . | . . . . . Garrison Access . | . . . . . Total Hacks 14 | . 5 1 . 8 Successful 4 | . 1 1 . 2 Failed 10 | . 4 . . 6 Catastrophic 2 | . . . . 2 Database Lockouts . | . . . . . Manual . | . . . . . Terminals 13 | . 5 . . 8 Fabricators . | . . . . . Repair Stations . | . . . . . Recycling Units . | . . . . . Scanalyzers . | . . . . . Garrison Access . | . . . . . Terminal Hacks 4 | . 1 1 . 2 Open Door 2 | . . 1 . 1 Maintenance Status 1 | . 1 . . . Hauler Manifests 1 | . . . . 1 Fabricator Hacks . | . . . . . Repair Station Hacks . | . . . . . Recycling Unit Hacks . | . . . . . Scanalyzer . | . . . . . Garrison Access Hacks . | . . . . . Unauthorized Hacks . | . . . . . Terminals . | . . . . . Fabricators . | . . . . . Repair Stations . | . . . . . Recycling Units . | . . . . . Scanalyzers . | . . . . . Garrison Access . | . . . . . Data Cores Recovered . | . . . . . Used . | . . . . . Hacking Detections 7 | . 2 . . 5 Full Trace Events 1 | . . . . 1 Feedback Events . | . . . . . Feedback Blocked . | . . . . . Robot Schematics Acquired . | . . . . . Robots Built . | . . . . . Authchips . | . . . . . Time . | . . . . . Total Robot Build Rating . | . . . . . Part Schematics Acquired . | . . . . . Parts Built . | . . . . . Authchips . | . . . . . Time . | . . . . . Total Part Build Rating . | . . . . . Parts Repaired . | . . . . . Time . | . . . . . Parts Recycled . | . . . . . Recycled Matter . | . . . . . Retrieved Matter . | . . . . . Retrieved Components . | . . . . . Parts Scanalyzed . | . . . . . Part Schematics Acquired . | . . . . . Parts Damaged . | . . . . . Bothacking | -11 -10 -10 -9 -9 ------------ Run | Jun Mat Min Mat Sto Used RIF Installer . | . . . . . Robots Hacked 1 | . . 1 . . Non-combat 1 | . . 1 . . Combat . | . . . . . Robot Hacks Applied 1 | . . 1 . . parse_system 1 | . . 1 . . Relay Couplers Released . | . . . . . Fabnet Peak Effective % . | . . . . . Robots Rewired . | . . . . . Allies Hacked . | . . . . . Hacks Repelled . | . . . . . Allies | -11 -10 -10 -9 -9 -------- Run | Jun Mat Min Mat Sto Total Allies . | . . . . . Largest Group . | . . . . . Highest-Rated Group . | . . . . . Highest-Rated Ally . | . . . . . Total Orders . | . . . . . Ally Attacks . | . . . . . Total Damage . | . . . . . Kills . | . . . . . Allies Corrupted . | . . . . . Allies Melted . | . . . . . Intel | -11 -10 -10 -9 -9 ------- Run | Jun Mat Min Mat Sto Robot Analysis Total . | . . . . . Derelict Logs Recovered . | . . . . . Drone Launches . | . . . . . Drone Recoveries . | . . . . . Exploration | -11 -10 -10 -9 -9 ------------- Run | Jun Mat Min Mat Sto Turns Passed 1184 | 45 175 450 119 395 Spaces Moved 760 | 36 120 318 51 235 Core 15 | 15 . . . . Treads . | . . . . . Legs 745 | 21 120 318 51 235 Wheels . | . . . . . Hover . | . . . . . Flight . | . . . . . Fastest Speed 50 | 50 120 120 120 120 Average Speed 118 | 90 120 120 120 120 Slowest Speed 120 | 120 120 120 120 120 Overloaded Moves . | . . . . . Propulsion Burnouts . | . . . . . Robots Hopped . | . . . . . Cave-ins Triggered . | . . . . . Exploration Rate (%) 29 | 4 27 70 7 39 Regions Visited 4 Branch Regions 2 Pre-discovered Areas . | . . . . . Known Exits Taken . | . . . . . Unknown Exits Taken 4 | 1 1 1 1 . Scrap Searched . | . . . . . Spaces Dug . | . . . . . Terrain Destroyed . | . . . . . Melee . | . . . . . Projectile . | . . . . . AOE . | . . . . . Terrain Rammed . | . . . . . Walls Destroyed . | . . . . . Machines Disabled . | . . . . . Actions | -11 -10 -10 -9 -9 --------- Run | Jun Mat Min Mat Sto Total 943 | 47 151 372 87 286 Wait 76 | . 21 39 16 . Move 756 | 35 119 317 50 235 Hop . | . . . . . Pick Up 19 | 6 7 . 4 2 Fast Attach 8 | 2 . . . 6 Attach 13 | 4 1 1 3 4 Detach . | . . . . . Swap 6 | . 2 . 3 1 Drop 1 | . 1 . . . Fire 63 | . . 14 11 38 Melee 1 | . . 1 . . Ram . | . . . . . Kick . | . . . . . Crush . | . . . . . Escape Stasis . | . . . . . Rewire . | . . . . . Trap . | . . . . . Miscellaneous . | . . . . . Route ------- -11/Junkyard -10/Materials -10/Mines -9/Materials -9/Storage History --------- Turn | Location | Event 22 | -11/Junkyard | Discovered new exit (range 16) 46 | -11/Junkyard | Entered Materials 162 | -10/Materials | Discovered new exit (range 9) 195 | -10/Materials | Met 8R-AWN 221 | -10/Materials | Entered Mines 223 | -10/Mines | Followed 8R-AWN into the Mines 306 | -10/Mines | Build established: Mutant 611 | -10/Mines | Met a Derelict who couldn't figure out how to use a Trap Extractor 656 | -10/Mines | Discovered new exit (range 13) 671 | -10/Mines | Entered Materials 671 | -9/Materials | Evolved 2 slots: Propulsion x2 699 | -9/Materials | Discovered new exit (range 15) 790 | -9/Materials | Entered Storage 993 | -9/Storage | Lost 3 parts (1p2n) 1185 | -9/Storage | Self-destructed Last Messages --------------- Investigation squad. 01057_ Triggered Blade Trap. 01057_ Massive razor-sharp blades shoot up from within the floor. 01057_ Med. Laser severed. 01058_ U-05 Engineer lays Concrete. 01071_ Connecting with Door Terminal... 01114_ W-16 Scout sends out distress signal. 01142_ Y-45 Defender suffers critical hit (Destroy). 01142_ Y-45 Defender destroyed. 01145_ Acquired 54 matter. 01146_ Acquired 51 matter. 01154_ Acquired Imp. Targeting Computer. 01163_ Triggered Blade Trap. 01163_ Massive razor-sharp blades shoot up from within the floor. 01163_ Hvy. Assault Rifle severed. 01163_ Ion Engine severed. 01166_ R-06 Scavenger collects Heat Sink. 01169_ U-05 Engineer lays Concrete. 01171_ R-06 Scavenger collects Heat Sink. 01180_ S-10 Pest destroyed. Map ----- +----------------------------------------------------+ | ????####+###### ### ######## #???????????????? | | ??????????? # #?# #??????# #???????????????? | | ???????????" # #?# #??????# #???? #????????? | | ???????????" # #?# #??????# #??"" +????????? | | ???????????" # #?# #??????# # """ #????????? | | ???????????" # ###+######## + #????????? | | ???????????" + + ## # """ #????????? | | ???????????" # # == ## # """ #????????? | | ????????? # # == ## + """ #????????? | | ????????####### # = ## # #????????? | | ??????????????# + ## #??"" #????????? | | ??????????????# # "T" ## #???? #????????? | | ?????########## # ! """ ?# #??????#????????? | | ?????# ^ # # ## #???????????????? | | ?????#^ ^^""" # ############ #???????????????? | | ?????# T" # ## #???????# #???????????????? | | ?????# """ # ##+######### #???????????????? | | ?????# + / ## #???????????????? | | ?????# """ # ## ## #???????????????? | | ?????#=^ """ # ## """"s ## ##??????????????? | | ?????# """ # ## "??" # ####### #????? | | ?????# ! =# ## "??" # #????? | | ?????#######%## ## "??" # #????? | | ???????????#### ## "??" # #????? | | ??????????????# ## """" u # ########+##????? | | ??????????????# ## *s@ # ########???????????? | | ??????????????###########/### # #???????????? | | ???????????????????????#a [ / ##??????????? | | ???????????????????????# u %==# """ #??????????? | | ???????????????????????# % *# """ ##??????????? | | ???????????????????????# ^^[+ """ #???????????? | | ???????????????????????# #### #???????????? | | ???????????????????????# #??##" "###???????????? | | ???????????????????????# #???#"R"#?????????????? | | ???????????????????????# #???#"""#?????????????? | | ???????????????????????# r##########????????????? | | ???????????????????????# ## #????????????? | | ???????????????????????# ## ""#????????????? | | ???????????????????????# ## Y"#????????????? | | ???????????????????????# ## ""#????????????? | | ???????????????????????# # #????????????? | | ???????????????????????# ##[ #????????????? | | ???????????????????????# ##%[ #?????###????? | | ???????????????????????# ##= """ #?#####T##???? | | ???????????????????????# ## """ #?#!!! #???? | | ???????????????????????# ## """ #?#!!! #???? | | ??????????????????????## ## #?##### #???? | | ??????????????????????# = ####+##########+#####? | | ??????????????????????#*% #? | | ??????????????????????# T #? | +----------------------------------------------------+ Best States ------------- Heat Dissipation 28 Energy Generation 12 Energy Capacity 265 Matter Stores 450 Matter Capacity 450 Sight Range 16 Terrain Scan Density 10 Evasion (%) 55 Targeting Accuracy 6 Item Schematics ----------------- None Robot Schematics ------------------ None Fabricated ------------ Nothing Alien Tech Used ----------------- None Achievements -------------- None Challenges ------------ None Game ------ Seed ChromaticLightpackBiocell Manual? 0 Play Time 00:21:12 Cumulative 12.4 hours Start 2023.11.05 @ 07:23:01 End 2023.11.05 @ 07:39:25 Sessions 1 Manual Loads 0 Difficulty Rogue Special Mode None Game No. 36 Rogue 36 Adventurer 0 Explorer 0 Win Type - Total 0 Types 0/0/0/0/0/0/0/0/0 Lore% 9 Gallery% 19 Achievement% 8 Wizard Run 0 Options --------- ASCII 0 Keyboard 0 Movement Mouse Keybinds 0 Fullscreen 1 Font 18/SmallcapsGlow Map View 76x50 Tactical HUD 1 Map Filters NONE Filters NONE Steam 1 RUN: cc515805-66e8-43ce-b046-d781043b08c9